bitfinex/quotes_BTCUSD_20240819
["timestamp","ask_amount","ask_price","bid_price","bid_amount"]
[1724036610534,0.00188668,58804.0,58803.0,1.62972754]
[1724036610945,0.00188668,58804.0,58803.0,1.63994467]
[1724036611165,0.00188668,58804.0,58803.0,1.64194467]
[1724036611581,0.00188668,58804.0,58803.0,3.14194467]
[1724036612392,0.00188668,58804.0,58803.0,3.02584467]
[1724036615750,0.00270868,58804.0,58803.0,3.02584467]
[1724036622178,0.00270868,58804.0,58803.0,3.26392767]
[1724036622885,0.00170868,58804.0,58803.0,3.24992767]
[1724036623190,0.000822,58804.0,58803.0,3.23592767]
[1724036623389,0.001822,58804.0,58803.0,3.24992767]
[1724036624844,0.002822,58804.0,58803.0,3.26392767]
[1724036629090,0.002822,58804.0,58803.0,3.26483187]
[1724036630727,0.002822,58804.0,58803.0,3.27253487]
[1724036632638,0.002822,58804.0,58803.0,3.38853487]
[1724036637382,0.002822,58804.0,58803.0,3.43886597]
[1724036638752,0.002822,58804.0,58803.0,3.43902223]
[1724036639366,0.002822,58804.0,58803.0,3.14845187]
[1724036639571,0.002822,58804.0,58803.0,3.1989456]
[1724036639770,0.002822,58804.0,58803.0,3.2009456]
[1724036641275,0.002822,58804.0,58803.0,3.15045187]
[1724036642173,0.002822,58804.0,58803.0,3.22620789]
[1724036642415,0.002822,58804.0,58803.0,3.49268124]
[1724036642939,0.002822,58804.0,58803.0,3.22620789]
[1724036643158,0.002822,58804.0,58803.0,3.49305825]
[1724036644019,0.002822,58804.0,58803.0,3.73114125]
[1724036644254,0.002822,58804.0,58803.0,3.65538523]
[1724036645409,0.002822,58804.0,58803.0,3.81257965]
[1724036646559,0.002822,58804.0,58803.0,3.81253915]
[1724036647175,0.002822,58804.0,58803.0,3.71147351]
[1724036647483,1e-06,58804.0,58803.0,3.73447351]
[1724036647710,0.000822,58809.0,58803.0,3.73447351]
[1724036647711,0.000822,58809.0,58808.0,1.452941]
[1724036647883,0.000822,58809.0,58808.0,2.17667142]
[1724036648103,0.000822,58809.0,58808.0,2.18067142]
[1724036648104,0.01213081,58809.0,58808.0,2.18067142]
[1724036648310,0.01213081,58809.0,58808.0,3.60484808]
[1724036648647,0.000822,58809.0,58808.0,3.60484808]
[1724036648853,0.000822,58809.0,58808.0,3.69468049]
[1724036649361,0.000822,58809.0,58808.0,3.63284808]
[1724036650364,0.000822,58809.0,58808.0,3.71994586]
[1724036650984,0.000822,58809.0,58808.0,3.73394586]
[1724036652302,0.000822,58809.0,58808.0,3.63284808]
[1724036653361,0.000822,58809.0,58808.0,3.75922031]
[1724036654378,0.000822,58809.0,58808.0,3.63284808]
[1724036655354,0.000822,58809.0,58808.0,3.6339704]
[1724036655536,0.000822,58809.0,58808.0,3.69017353]
[1724036656170,0.000822,58809.0,58808.0,3.95123553]
[1724036656572,0.000822,58809.0,58808.0,4.29530951]
[1724036656780,0.000822,58809.0,58808.0,4.5196348]
[1724036657000,0.000822,58809.0,58808.0,4.29530951]
[1724036660502,0.365995,58815.0,58814.0,0.088]
[1724036660704,0.0002,58819.0,58817.0,0.362039]
[1724036660875,0.0002,58819.0,58817.0,1.63739885]
[1724036661027,0.0002,58819.0,58817.0,2.11345085]
[1724036661232,0.0002,58819.0,58817.0,3.37542485]
[1724036661447,0.0002,58819.0,58817.0,3.04057154]
[1724036661648,0.0002,58819.0,58817.0,3.27859754]
[1724036661850,0.0002,58819.0,58817.0,3.29259754]
[1724036662479,0.0002,58819.0,58817.0,3.30659754]
[1724036663287,0.0002,58819.0,58817.0,3.31710408]
[1724036663695,0.0002,58819.0,58817.0,3.30310408]
[1724036663895,0.0002,58819.0,58817.0,3.36740408]
[1724036664688,0.0002,58819.0,58817.0,3.35340408]
[1724036665067,0.0002,58819.0,58817.0,3.36740408]
[1724036665278,0.0002,58819.0,58817.0,3.20110408]
[1724036665448,0.0002,58819.0,58817.0,3.3536631]
[1724036666509,0.0002,58819.0,58817.0,3.4162631]
[1724036666711,0.0002,58819.0,58817.0,3.36570408]
[1724036666949,0.0002,58819.0,58817.0,3.37970408]
[1724036667186,0.0002,58819.0,58817.0,3.36570408]
[1724036668146,0.0002,58819.0,58817.0,3.37970408]
[1724036668535,0.0002,58819.0,58817.0,3.36570408]
[1724036668960,0.0002,58819.0,58817.0,3.37970408]
[1724036669166,0.00017178,58819.0,58818.0,1.314121]
[1724036669369,0.00017178,58819.0,58818.0,1.58567554]
[1724036669789,0.00017178,58819.0,58818.0,3.08567554]
[1724036670512,0.00017178,58819.0,58818.0,3.47084782]
[1724036670771,0.00017178,58819.0,58818.0,3.43426367]
[1724036670932,0.00017178,58819.0,58818.0,3.51636967]
[1724036672483,0.00017178,58819.0,58818.0,3.25764681]
[1724036673413,0.00017178,58819.0,58818.0,3.25763545]
[1724036674915,0.00017178,58819.0,58818.0,3.01961345]
[1724036675238,0.14737178,58819.0,58818.0,1.10073754]
[1724036675816,0.14737178,58819.0,58818.0,1.03263154]
[1724036676394,0.14737178,58819.0,58818.0,1.13263154]
[1724036676755,0.14737178,58819.0,58818.0,1.11863154]
[1724036676967,0.14819378,58819.0,58818.0,1.11863154]
[1724036677085,0.14819378,58819.0,58818.0,1.13263154]
[1724036677279,0.14819378,58819.0,58818.0,1.11863154]
[1724036677485,0.14819378,58819.0,58818.0,1.13263154]
[1724036677743,0.14819378,58819.0,58818.0,1.11863154]
[1724036677940,0.06699378,58819.0,58818.0,1.12163154]
[1724036678086,0.06699378,58819.0,58818.0,1.13263154]
[1724036678511,0.06699378,58819.0,58818.0,1.10463154]
[1724036678772,0.06699378,58819.0,58818.0,1.11863154]
[1724036679743,0.06699378,58819.0,58818.0,1.12163154]
[1724036679972,0.06699378,58819.0,58818.0,1.11963154]
[1724036680393,0.06699378,58819.0,58818.0,1.10563154]
[1724036680608,0.06699378,58819.0,58818.0,1.12163154]
[1724036680800,0.06699378,58819.0,58818.0,1.13363154]
[1724036681209,0.00099378,58819.0,58818.0,1.37165354]
[1724036681361,0.00099378,58819.0,58818.0,2.63363154]
[1724036681763,0.00099378,58819.0,58818.0,2.87165354]
[1724036681990,0.00099378,58819.0,58818.0,2.85765354]
[1724036682808,0.00099378,58819.0,58818.0,2.84565354]
[1724036683019,0.00099378,58819.0,58818.0,2.84365354]
[1724036683424,0.00099378,58819.0,58818.0,2.85765354]
[1724036684101,0.00099378,58819.0,58818.0,2.87165354]
[1724036685423,0.00099378,58819.0,58818.0,2.87365354]
[1724036685628,0.00099378,58819.0,58818.0,2.87565354]
[1724036685878,0.00099378,58819.0,58818.0,3.07442506]
[1724036686076,0.00099378,58819.0,58818.0,3.00912506]
[1724036686414,0.00099378,58819.0,58818.0,2.95855354]
[1724036686820,0.00099378,58819.0,58818.0,3.03442639]
[1724036687290,0.00099378,58819.0,58818.0,2.95855354]
[1724036687435,0.00099378,58819.0,58818.0,2.95655354]
[1724036687636,0.00099378,58819.0,58818.0,2.95455354]
[1724036688229,0.00099378,58819.0,58818.0,2.92224225]
[1724036689624,0.00099378,58819.0,58818.0,2.92714645]
[1724036690854,0.00099378,58819.0,58818.0,3.00734645]
[1724036691209,0.00099378,58819.0,58818.0,2.95675774]
[1724036691530,0.00099378,58819.0,58818.0,3.19477974]
[1724036691732,0.00099378,58819.0,58818.0,2.95675774]
[1724036692402,0.00099378,58819.0,58818.0,3.3123296]
[1724036692756,0.00099378,58819.0,58818.0,3.5503516]
[1724036692957,0.00099378,58819.0,58818.0,3.3123296]
[1724036693160,0.00099378,58819.0,58818.0,3.21115765]
[1724036693359,0.00099378,58819.0,58818.0,3.51457965]
[1724036695297,0.00099378,58819.0,58818.0,3.32715765]
[1724036697391,0.00099378,58819.0,58818.0,3.45368155]
[1724036698425,0.00099378,58819.0,58818.0,3.37348155]
[1724036698836,0.00099378,58819.0,58818.0,3.25348155]
[1724036698992,0.00099378,58819.0,58818.0,3.36948155]
[1724036699628,0.00099378,58819.0,58818.0,3.37348155]
[1724036700436,0.00099378,58819.0,58818.0,3.24195765]
[1724036700642,0.14239378,58819.0,58818.0,3.12595765]
[1724036700837,0.14239378,58819.0,58818.0,3.24195765]
[1724036701056,0.14239378,58819.0,58818.0,2.98755774]
[1724036701519,0.06109378,58819.0,58818.0,2.98755774]
[1724036701717,0.00099378,58819.0,58818.0,2.99055774]
[1724036702232,0.00099378,58819.0,58818.0,2.98855774]
[1724036702459,0.00099378,58819.0,58818.0,3.37452185]
[1724036703008,0.00099378,58819.0,58818.0,3.44972185]
[1724036703481,0.00099378,58819.0,58818.0,3.32314427]
[1724036703952,0.00099378,58819.0,58818.0,3.56028151]
[1724036708491,0.00099378,58819.0,58818.0,3.56020318]
[1724036712893,0.00099378,58819.0,58818.0,3.60450174]
[1724036713077,7.8e-07,58819.0,58818.0,3.64338493]
[1724036713476,7.8e-07,58819.0,58818.0,3.69960888]
[1724036713718,7.8e-07,58819.0,58818.0,3.68560888]
[1724036713938,7.8e-07,58819.0,58818.0,3.67160888]
[1724036714181,7.8e-07,58819.0,58818.0,3.68560888]
[1724036714407,7.8e-07,58819.0,58818.0,3.69960888]
[1724036714621,7.8e-07,58819.0,58818.0,4.03037138]
[1724036715046,7.8e-07,58819.0,58818.0,3.69960888]
[1724036715709,7.8e-07,58819.0,58818.0,4.01637138]
[1724036716046,7.8e-07,58819.0,58818.0,3.68560888]
[1724036716225,7.8e-07,58819.0,58818.0,3.67660888]
[1724036716399,7.8e-07,58819.0,58818.0,3.64860888]
[1724036716599,7.8e-07,58819.0,58818.0,4.1311347]
[1724036716808,7.8e-07,58819.0,58818.0,4.04221075]
[1724036717006,7.8e-07,58819.0,58818.0,3.87644743]
[1724036717209,7.8e-07,58819.0,58818.0,3.29177974]
[1724036717456,0.14520078,58819.0,58818.0,1.60101014]
[1724036717789,0.14520078,58819.0,58818.0,1.43446963]
[1724036718254,0.14520078,58819.0,58818.0,1.35855774]
[1724036718413,0.14520078,58819.0,58818.0,1.25855774]
[1724036719023,7.8e-07,58819.0,58818.0,1.33565774]
[1724036719227,7.8e-07,58819.0,58818.0,1.25855774]
[1724036719633,0.06520078,58819.0,58818.0,1.37255774]
[1724036719836,0.14520078,58819.0,58818.0,1.35855774]
[1724036719982,0.14520078,58819.0,58818.0,1.37255774]
[1724036720389,0.14520078,58819.0,58818.0,1.37155774]
[1724036720684,0.14520078,58819.0,58818.0,1.4221767]
[1724036720922,0.14520078,58819.0,58818.0,1.37155774]
[1724036722058,0.14520078,58819.0,58818.0,1.35755774]
[1724036722305,0.14520078,58819.0,58818.0,0.8479812]
[1724036722507,0.14520078,58819.0,58818.0,0.8619812]
[1724036723039,0.14520078,58819.0,58818.0,0.8339812]
[1724036723241,0.14520078,58819.0,58818.0,0.8619812]
[1724036723654,0.14520078,58819.0,58818.0,0.8339812]
[1724036723898,0.14520078,58819.0,58818.0,0.8479812]
[1724036724094,0.14520078,58819.0,58818.0,0.8619812]
[1724036724497,0.14520078,58819.0,58818.0,0.6239592]
[1724036725119,0.14520078,58819.0,58818.0,0.9779812]
[1724036725255,0.06520078,58819.0,58818.0,0.9499812]
[1724036725458,0.06520078,58819.0,58818.0,0.9779812]
[1724036726785,0.06520078,58819.0,58818.0,1.14953574]
[1724036727222,0.14700078,58819.0,58818.0,1.14953574]
[1724036727368,0.14700078,58819.0,58818.0,1.03353574]
[1724036727977,0.14700078,58819.0,58818.0,0.8619812]
[1724036728969,0.14499461,58819.0,58818.0,0.8619812]
[1724036730856,0.14499461,58819.0,58818.0,0.6239592]
[1724036731746,0.14499461,58819.0,58818.0,0.3859372]
[1724036731944,0.14499461,58819.0,58818.0,0.6239592]
[1724036733504,0.14499461,58819.0,58818.0,0.8619812]
[1724036736356,0.14581661,58819.0,58818.0,0.8619812]
[1724036745011,0.000822,58819.0,58818.0,1.03353574]
[1724036745721,0.000822,58819.0,58818.0,2.77155774]
[1724036746261,0.000822,58819.0,58818.0,2.85055774]
[1724036748518,0.000822,58819.0,58818.0,2.86078372]
[1724036750390,0.000822,58819.0,58818.0,2.53353574]
[1724036750391,0.062022,58819.0,58818.0,2.53353574]
[1724036751591,0.062022,58819.0,58818.0,0.8619812]
[1724036751807,0.062022,58819.0,58818.0,0.6239592]
[1724036752009,0.139322,58819.0,58818.0,0.6239592]
[1724036752342,0.16636357,58819.0,58818.0,0.6239592]
[1724036752964,0.139322,58819.0,58818.0,0.6239592]
[1724036753772,0.000822,58819.0,58818.0,1.35175774]
[1724036753979,0.000822,58819.0,58818.0,1.74295774]
[1724036754183,0.000822,58819.0,58818.0,1.74695774]
[1724036754421,0.000822,58819.0,58818.0,3.48497974]
[1724036754606,0.000822,58819.0,58818.0,3.31165774]
[1724036754799,0.000822,58819.0,58818.0,3.29765774]
[1724036754956,0.000822,58819.0,58818.0,3.52167974]
[1724036755151,0.000822,58819.0,58818.0,3.54967974]
[1724036755352,0.000822,58819.0,58818.0,3.53567974]
[1724036755817,0.000822,58819.0,58818.0,3.30812312]
[1724036756101,0.000822,58819.0,58818.0,3.29012312]
[1724036756559,0.000822,58819.0,58818.0,3.30412312]
[1724036757350,0.000822,58819.0,58818.0,3.31812312]
[1724036757738,0.000822,58819.0,58818.0,3.30412312]
[1724036757913,0.000822,58819.0,58818.0,3.29012312]
[1724036758151,0.000822,58819.0,58818.0,3.32012312]
[1724036760440,0.000822,58819.0,58818.0,3.37070442]
[1724036760844,0.000822,58819.0,58818.0,2.68411704]
[1724036761323,0.000822,58819.0,58818.0,2.63353574]
[1724036761530,0.000822,58819.0,58818.0,2.92213904]
[1724036762088,0.000822,58819.0,58818.0,2.68411704]
[1724036762502,0.000822,58819.0,58818.0,2.63353574]
[1724036762653,0.000822,58819.0,58818.0,2.87155774]
[1724036763016,0.000822,58819.0,58818.0,3.0234297]
[1724036764053,0.000822,58819.0,58818.0,2.7854077]
[1724036764259,0.000822,58819.0,58818.0,2.63353574]
[1724036764437,0.000822,58819.0,58818.0,2.87155774]
[1724036764812,0.000822,58819.0,58818.0,2.92221322]
[1724036764992,0.000822,58819.0,58818.0,2.68419122]
[1724036765192,0.000822,58819.0,58818.0,2.68419141]
[1724036765612,0.000822,58819.0,58818.0,2.63353574]
[1724036766215,0.000822,58819.0,58818.0,2.87155774]
[1724036766844,0.147922,58819.0,58818.0,0.7239592]
[1724036767083,0.147922,58819.0,58818.0,0.6239592]
[1724036767651,0.147922,58819.0,58818.0,0.6099592]
[1724036767869,0.147922,58819.0,58818.0,0.5959592]
[1724036768028,0.147922,58819.0,58818.0,0.6099592]
[1724036768228,0.147922,58819.0,58818.0,0.6239592]
[1724036768429,0.147922,58819.0,58818.0,0.8479812]
[1724036768633,0.147922,58819.0,58818.0,0.8339812]
[1724036768830,0.147922,58819.0,58818.0,0.6099592]
[1724036769215,0.000822,58819.0,58818.0,0.6099592]
[1724036769445,0.000822,58819.0,58818.0,0.6239592]
[1724036770105,0.000822,58819.0,58818.0,0.6099592]
[1724036770278,0.000822,58819.0,58818.0,0.8619812]
[1724036770477,0.000822,58819.0,58818.0,0.6239592]
[1724036770685,0.000822,58819.0,58818.0,0.8619812]
[1724036771191,0.000822,58819.0,58818.0,0.6239592]
[1724036772199,0.145122,58819.0,58818.0,0.6239592]
[1724036789783,0.145122,58819.0,58818.0,0.0289042]
[1724036789784,0.2786432,58819.0,58818.0,0.0289042]
[1724036789982,0.145122,58819.0,58818.0,0.0289042]
[1724036790374,0.28667913,58819.0,58818.0,0.0289042]
[1724036790722,0.28667913,58819.0,58818.0,0.0009042]
[1724036790932,0.28667913,58819.0,58818.0,0.0129042]
[1724036791762,0.28667913,58819.0,58818.0,0.0249042]
[1724036791999,0.28667913,58819.0,58818.0,0.0129042]
[1724036792196,0.28667913,58819.0,58818.0,0.0219042]
[1724036792435,0.28667913,58819.0,58818.0,0.0099042]
[1724036792637,0.52469713,58819.0,58818.0,0.0009042]
[1724036792753,0.52469713,58819.0,58818.0,0.0169042]
[1724036793151,0.52469713,58819.0,58818.0,0.0069042]
[1724036793373,0.28667913,58819.0,58818.0,0.0069042]
[1724036793567,0.28667913,58819.0,58818.0,0.0139042]
[1724036794220,0.28667913,58819.0,58818.0,0.0079042]
[1724036794437,0.02337013,58819.0,58818.0,0.6089592]
[1724036794589,0.02296088,58819.0,58818.0,0.6089592]
[1724036794790,0.02296088,58819.0,58818.0,0.3709372]
[1724036795021,0.14581275,58819.0,58818.0,0.0139042]
[1724036795215,0.14581275,58819.0,58818.0,0.1329152]
[1724036795415,0.14581275,58819.0,58818.0,0.3709372]
[1724036795416,0.16826226,58819.0,58818.0,0.3709372]
[1724036795621,0.14581275,58819.0,58818.0,0.3639372]
[1724036795822,0.16826226,58819.0,58818.0,0.3579372]
[1724036796029,0.16826226,58819.0,58818.0,0.3839372]
[1724036796402,0.08616226,58819.0,58818.0,0.3709372]
[1724036796858,0.08616226,58819.0,58818.0,0.3839372]
[1724036797009,0.02286226,58819.0,58818.0,0.7048592]
[1724036797429,0.00041275,58819.0,58818.0,0.7048592]
[1724036797639,0.00041275,58819.0,58818.0,0.6219592]
[1724036799424,0.00041275,58819.0,58818.0,0.3839372]
[1724036799425,0.14601275,58819.0,58818.0,0.3839372]
[1724036799561,0.14601275,58819.0,58818.0,0.1459152]
[1724036799779,0.16847842,58819.0,58818.0,0.3839372]
[1724036799979,0.16847842,58819.0,58818.0,0.3709372]
[1724036800408,0.14601275,58819.0,58818.0,0.3839372]
[1724036801178,0.06531275,58819.0,58818.0,0.3839372]
[1724036801384,0.00041275,58819.0,58818.0,0.3839372]
[1724036802840,0.00041275,58819.0,58818.0,0.3709372]
[1724036803235,0.00041275,58819.0,58818.0,0.3839372]
[1724036803788,0.02287842,58819.0,58818.0,0.3839372]
[1724036804063,0.16437842,58819.0,58818.0,0.3839372]
[1724036805194,0.16437842,58819.0,58818.0,0.1459152]
[1724036806003,0.16437842,58819.0,58818.0,0.0269042]
[1724036807173,0.28338742,58819.0,58818.0,0.0269042]
[1724036808207,0.52140542,58819.0,58818.0,0.0269042]
[1724036808430,0.89930519,58819.0,58818.0,0.0269042]
[1724036808637,0.90230519,58819.0,58818.0,0.0269042]
[1724036809237,0.90230519,58819.0,58818.0,0.0139042]
[1724036809435,0.95325378,58819.0,58818.0,0.0009042]
[1724036809575,1.19127178,58819.0,58818.0,0.0009042]
[1724036809778,1.14032319,58819.0,58818.0,0.0049042]
[1724036809974,1.14032319,58819.0,58818.0,0.0089042]
[1724036810179,1.14232319,58819.0,58818.0,0.0089042]
[1724036810381,1.30987773,58819.0,58818.0,0.0049042]
[1724036810588,1.21474778,58819.0,58818.0,0.0049042]
[1724036810824,1.13832319,58819.0,58818.0,0.0089042]
[1724036811022,1.13832319,58819.0,58818.0,0.0049042]
[1724036812158,1.21474778,58819.0,58818.0,0.0009042]
[1724036812563,1.2392829,58819.0,58818.0,0.0009042]
[1724036813538,1.13832319,58819.0,58818.0,0.0009042]
[1724036813944,0.9929603,58819.0,58818.0,0.0009042]
[1724036814147,0.95025183,58819.0,58818.0,0.0009042]
[1724036814487,0.89930519,58819.0,58818.0,0.0009042]
[1724036816395,0.63828719,58819.0,58818.0,0.0009042]
[1724036818288,0.63828719,58819.0,58818.0,0.0019042]
[1724036818522,0.56198719,58819.0,58818.0,0.0019042]
[1724036819077,0.56198719,58819.0,58818.0,0.0039042]
[1724036819679,0.32396919,58819.0,58818.0,0.0039042]
[1724036820463,0.56198719,58819.0,58818.0,0.0039042]
[1724036820913,0.32396919,58819.0,58818.0,0.0029042]
[1724036821634,0.02287842,58819.0,58818.0,0.0059042]
[1724036821858,0.02287842,58819.0,58818.0,0.7493592]
[1724036822295,0.00041275,58819.0,58818.0,0.7493592]
[1724036822464,0.00041275,58819.0,58818.0,0.7463592]
[1724036822883,0.00041275,58819.0,58818.0,0.7513592]
[1724036823669,0.00041275,58819.0,58818.0,0.7493592]
[1724036823872,0.00041275,58819.0,58818.0,0.7533592]
[1724036825695,0.00041275,58819.0,58818.0,0.9913812]
[1724036826738,0.00041275,58819.0,58818.0,0.9873812]
[1724036827224,0.00041275,58819.0,58818.0,0.9913812]
[1724036827422,0.00041275,58819.0,58818.0,0.9863812]
[1724036827625,0.00041275,58819.0,58818.0,0.9913812]
[1724036828105,0.00041275,58819.0,58818.0,0.9873812]
[1724036828340,0.00041275,58819.0,58818.0,0.9963812]
[1724036828569,0.00041275,58819.0,58818.0,1.0103812]
[1724036829572,0.00041275,58819.0,58818.0,1.41995774]
[1724036829839,0.00041275,58819.0,58818.0,2.92095774]
[1724036830095,0.00041275,58819.0,58818.0,3.02095774]
[1724036830600,0.00041275,58819.0,58818.0,2.99295774]
[1724036830828,0.00041275,58819.0,58818.0,3.00695774]
[1724036831066,0.00041275,58819.0,58818.0,3.02295774]
[1724036831312,0.00041275,58819.0,58818.0,3.00895774]
[1724036831543,0.00041275,58819.0,58818.0,2.99495774]
[1724036831778,0.00041275,58819.0,58818.0,3.00895774]
[1724036832259,0.00041275,58819.0,58818.0,3.02295774]
[1724036832972,0.00041275,58819.0,58818.0,3.01995774]
[1724036833210,0.00041275,58819.0,58818.0,1.50595774]
[1724036833891,0.00041275,58819.0,58818.0,1.51995774]
[1724036834129,0.00041275,58819.0,58818.0,1.50595774]
[1724036834378,0.00041275,58819.0,58818.0,1.49195774]
[1724036834634,0.00041275,58819.0,58818.0,1.51995774]
[1724036836511,0.00041275,58819.0,58818.0,1.28193574]
[1724036844500,0.00041275,58819.0,58818.0,1.21663574]
[1724036845801,0.00041275,58819.0,58818.0,0.6239592]
[1724036846832,0.00041275,58819.0,58818.0,0.5959592]
[1724036847183,0.00041275,58819.0,58818.0,0.6862592]
[1724036847388,0.00041275,58819.0,58818.0,0.7002592]
[1724036847819,0.00041275,58819.0,58818.0,0.7650592]
[1724036848021,0.00041275,58819.0,58818.0,1.17463574]
[1724036848635,0.00041275,58819.0,58818.0,2.67463574]
[1724036851599,0.00041275,58819.0,58818.0,1.17463574]
[1724036852043,0.00041275,58819.0,58818.0,2.67463574]
[1724036852612,0.00041275,58819.0,58818.0,1.17463574]
[1724036855148,0.00041275,58819.0,58818.0,1.18488147]
[1724036856621,0.00041275,58819.0,58818.0,1.30088147]
[1724036857614,0.00041275,58819.0,58818.0,1.29063574]
[1724036857883,0.00041275,58819.0,58818.0,0.6239592]
[1724036859166,0.00041275,58819.0,58818.0,0.8619812]
[1724036859914,0.00041275,58819.0,58818.0,0.6239592]
[1724036860410,0.00041275,58819.0,58818.0,0.8619812]
[1724036861135,0.00041275,58819.0,58818.0,0.6239592]
[1724036865322,0.00041275,58819.0,58818.0,0.1479152]
[1724036865525,0.14011275,58819.0,58818.0,0.0289042]
[1724036865731,0.16265452,58819.0,58818.0,0.0289042]
[1724036865933,0.16265452,58819.0,58818.0,0.3859372]
[1724036866141,0.16265452,58819.0,58818.0,0.1479152]
[1724036866350,0.16265452,58819.0,58818.0,0.1339152]
[1724036866589,0.14011275,58819.0,58818.0,0.3579372]
[1724036866793,0.14011275,58819.0,58818.0,0.1339152]
[1724036866948,0.16265452,58819.0,58818.0,0.1339152]
[1724036867155,0.16265452,58819.0,58818.0,0.1199152]
[1724036867349,0.16265452,58819.0,58818.0,0.1309152]
[1724036867575,0.16265452,58819.0,58818.0,0.1409152]
[1724036868184,0.16265452,58819.0,58818.0,0.1309152]
[1724036869693,0.16265452,58819.0,58818.0,0.1419152]
[1724036870996,0.16265452,58819.0,58818.0,0.3799372]
[1724036874592,0.16265452,58819.0,58818.0,0.1419152]
[1724036878120,0.16265452,58819.0,58818.0,0.0229042]
[1724036878121,0.66472884,58819.0,58818.0,0.0229042]
[1724036878369,0.87458129,58819.0,58818.0,0.0229042]
[1724036878843,0.97596052,58819.0,58818.0,0.0229042]
[1724036879073,1.0780199,58819.0,58818.0,0.0229042]
[1724036879601,0.23916179,58819.0,58818.0,0.0119042]
[1724036879858,0.16265452,58819.0,58818.0,0.0119042]
[1724036880536,0.02295452,58819.0,58818.0,0.0229042]
[1724036880739,0.02295452,58819.0,58818.0,0.6179592]
[1724036881164,0.00041275,58819.0,58818.0,0.6179592]
[1724036881796,0.00041275,58819.0,58818.0,0.7006592]
[1724036882015,0.00041275,58819.0,58818.0,0.6896592]
[1724036882224,0.00041275,58819.0,58818.0,0.7016592]
[1724036882640,0.00041275,58819.0,58818.0,0.4526372]
[1724036883052,0.00041275,58819.0,58818.0,0.4646372]
[1724036884492,0.00041275,58819.0,58818.0,0.4406372]
[1724036884699,0.00041275,58819.0,58818.0,0.4526372]
[1724036885108,0.00041275,58819.0,58818.0,0.4406372]
[1724036885313,0.00041275,58819.0,58818.0,0.4536372]
[1724036885956,0.00041275,58819.0,58818.0,0.4656372]
[1724036886384,0.00041275,58819.0,58818.0,0.4536372]
[1724036886847,0.00041275,58819.0,58818.0,0.4676372]
[1724036887051,0.00041275,58819.0,58818.0,0.4546372]
[1724036887269,0.00041275,58819.0,58818.0,0.4406372]
[1724036887482,0.00041275,58819.0,58818.0,0.4676372]
[1724036893054,0.00041275,58819.0,58818.0,0.4406372]
[1724036893462,0.00041275,58819.0,58818.0,0.4676372]
[1724036895229,0.00041275,58819.0,58818.0,0.3849372]
[1724036895432,0.00041275,58819.0,58818.0,0.3709372]
[1724036895811,0.00041275,58819.0,58818.0,0.3849372]
[1724036896370,0.00041275,58819.0,58818.0,0.3709372]
[1724036896790,0.00041275,58819.0,58818.0,0.3719372]
[1724036897262,0.00041275,58819.0,58818.0,0.3849372]
[1724036897465,0.00041275,58819.0,58818.0,0.3719372]
[1724036897893,0.00041275,58819.0,58818.0,0.3849372]
[1724036898148,0.00041275,58819.0,58818.0,0.3709372]
[1724036898377,0.00041275,58819.0,58818.0,0.3979372]
[1724036899187,0.00041275,58819.0,58818.0,0.6359592]
[1724036899387,0.00041275,58819.0,58818.0,0.3979372]
[1724036899843,0.00041275,58819.0,58818.0,0.6359592]
[1724036900017,0.00041275,58819.0,58818.0,0.7163592]
[1724036900553,0.00041275,58819.0,58818.0,0.4523372]
[1724036900766,0.00041275,58819.0,58818.0,0.3859372]
[1724036901015,0.06511275,58819.0,58818.0,0.3859372]
[1724036901231,0.06511275,58819.0,58818.0,0.3719372]
[1724036901438,0.06511275,58819.0,58818.0,0.3859372]
[1724036901638,0.06511275,58819.0,58818.0,0.3719372]
[1724036901988,0.26712175,58819.0,58818.0,0.0289042]
[1724036902261,0.86003952,58819.0,58818.0,0.0289042]
[1724036902544,0.93349251,58819.0,58818.0,0.0149042]
[1724036902680,0.93349251,58819.0,58818.0,0.0289042]
[1724036902880,1.09284705,58819.0,58818.0,0.0289042]
[1724036903080,1.11584705,58819.0,58818.0,0.0289042]
[1724036903296,1.19451051,58819.0,58818.0,0.0289042]
[1724036903509,1.14351904,58819.0,58818.0,0.0289042]
[1724036903740,1.24202204,58819.0,58818.0,0.0289042]
[1724036903941,1.24502204,58819.0,58818.0,0.0289042]
[1724036904120,1.41357658,58819.0,58818.0,0.0149042]
[1724036904316,1.41457658,58819.0,58818.0,0.0009042]
[1724036904671,1.51653215,58819.0,58818.0,0.0099042]
[1724036905110,1.41857658,58819.0,58818.0,0.0099042]
[1724036905320,1.92039233,58819.0,58818.0,0.0099042]
[1724036905576,1.97043187,58819.0,58818.0,0.0099042]
[1724036906117,1.96240899,58819.0,58818.0,0.0099042]
[1724036906708,1.95296372,58819.0,58818.0,0.0099042]
[1724036907126,1.96198267,58819.0,58818.0,0.0099042]
[1724036907578,1.95290581,58819.0,58818.0,0.0099042]
[1724036908639,1.80015001,58819.0,58818.0,0.0099042]
[1724036910309,1.79987161,58819.0,58818.0,0.0099042]
[1724036911789,0.833259,58805.0,58804.0,0.0009042]
[1724036911988,1.23216461,58805.0,58804.0,0.0009042]
[1724036912226,1.25646408,58805.0,58804.0,0.0009042]
[1724036913480,1.40934201,58805.0,58804.0,0.0009042]
[1724036913625,1.41034201,58805.0,58804.0,0.0009042]
[1724036913829,1.58189655,58805.0,58804.0,0.0009042]
[1724036914173,1.58086721,58805.0,58804.0,0.0009042]
[1724036914333,1.59336895,58805.0,58804.0,0.0009042]
[1724036914530,1.54252036,58805.0,58804.0,0.0009042]
[1724036914737,1.54352036,58805.0,58804.0,0.0009042]
[1724036915704,1.78159436,58805.0,58804.0,0.0009042]
[1724036915907,1.83242421,58805.0,58804.0,0.0009042]
[1724036916519,1.78159436,58805.0,58804.0,0.0009042]
[1724036916938,0.001,58796.0,58782.0,0.1009042]
[1724036917158,0.382082,58783.0,58782.0,0.1009042]
[1724036917367,0.74233386,58783.0,58782.0,0.1009042]
[1724036917571,0.78763333,58783.0,58782.0,0.1009042]
[1724036918402,0.78763333,58783.0,58782.0,0.0009042]
[1724036918603,0.67153333,58783.0,58782.0,0.0099042]
[1724036918985,0.67153333,58783.0,58782.0,0.0239042]
[1724036919190,0.14438733,58783.0,58782.0,0.1600042]
[1724036919392,0.26346933,58783.0,58782.0,0.1600042]
[1724036919590,0.14438733,58783.0,58782.0,0.1600042]
[1724036919839,0.14438733,58783.0,58782.0,0.1510042]
[1724036920041,0.26346933,58783.0,58782.0,0.1510042]
[1724036920186,0.14438733,58783.0,58782.0,0.1650042]
[1724036921742,0.02229947,58783.0,58782.0,0.1650042]
[1724036921905,0.02229947,58783.0,58782.0,0.7604242]
[1724036922102,0.119067,58791.0,58786.0,0.082]
[1724036922339,0.238131,58792.0,58786.0,0.082]
[1724036922340,0.24028774,58790.0,58786.0,0.082]
[1724036922539,0.26231888,58790.0,58786.0,0.082]
[1724036922742,0.14325088,58790.0,58786.0,0.201075]
[1724036923612,0.14325088,58790.0,58786.0,0.211075]
[1724036923835,0.14325088,58790.0,58786.0,0.01]